fUSD/lending_fUSD_20241224
["ID","MTS","AMOUNT","RATE_DAILY","PERIOD"]
[346483480,1735003840582,-500.0,0.00013698,2]
[346483481,1735003840591,-270.81295168,0.00013698,2]
[346483482,1735003840635,-229.18704832,0.00013698,2]
[346483483,1735003840644,-532.70370275,0.00013698,2]
[346483484,1735003840685,-54.04931614,0.00013698,2]
[346483485,1735003840695,-262.9465056,0.00013698,2]
[346483486,1735003840709,-237.0534944,0.00013698,2]
[346483487,1735003840718,-680.49,0.00013698,2]
[346483488,1735003840729,-292.49011904,0.00013698,2]
[346483489,1735003841330,7934.77833008,0.0002657,120]
[346483494,1735003842983,-500.0,0.00013698,2]
[346483495,1735003842993,-408.69375953,0.00013698,2]
[346483496,1735003843004,-91.30624047,0.00013698,2]
[346483497,1735003843014,-589.55,0.00013698,2]
[346483499,1735003843023,-423.91890909,0.00013698,2]
[346483500,1735003843147,-209.58109091,0.00013698,2]
[346483501,1735003843156,-500.0,0.00013698,2]
[346483502,1735003843165,-500.0,0.00013698,2]
[346483503,1735003843174,-500.0,0.00013698,2]
[346483504,1735003843183,-500.0,0.00013698,2]
[346483505,1735003843192,-500.0,0.00013698,2]
[346483506,1735003843201,-500.0,0.00013698,2]
[346483507,1735003843210,-500.0,0.00013698,2]
[346483508,1735003843219,-500.0,0.00013698,2]
[346483509,1735003843229,-500.0,0.00013698,2]
[346483510,1735003843238,-126.41890909,0.00013698,2]
[346483511,1735003843254,-571.78109091,0.00013698,2]
[346483512,1735003843263,-500.0,0.00013698,2]
[346483513,1735003843271,-135.6177491,0.00013698,2]
[346483514,1735003843283,-374.8322509,0.00013698,2]
[346483515,1735003843293,-500.0,0.00013698,2]
[346483516,1735003843302,-399.1177441,0.00013698,2]
[346483517,1735003843314,-100.8822559,0.00013698,2]
[346483518,1735003843326,-747.04,0.00013698,2]
[346483519,1735003843335,-500.0,0.00013698,2]
[346483520,1735003843344,-497.74580166,0.00013698,2]
[346483521,1735003843355,-2.25419834,0.00013698,2]
[346483522,1735003843364,-692.57,0.00013698,2]
[346483523,1735003843373,-500.0,0.00013698,2]
[346483524,1735003843382,-500.0,0.00013698,2]
[346483525,1735003843391,-500.0,0.00013698,2]
[346483526,1735003843400,-500.0,0.00013698,2]
[346483527,1735003843409,-500.0,0.00013698,2]
[346483528,1735003843419,-500.0,0.00013698,2]
[346483529,1735003843428,-500.0,0.00013698,2]
[346483530,1735003843437,-500.0,0.00013698,2]
[346483531,1735003843446,-500.0,0.00013698,2]
[346483532,1735003843455,-500.0,0.00013698,2]
[346483533,1735003843464,-500.0,0.00013698,2]
[346483535,1735003843473,-173.09107171,0.00013698,2]
[346483537,1735003843484,-809.14,0.00013698,2]
[346483539,1735003843493,-500.0,0.00013698,2]
[346483541,1735003843502,-500.0,0.00013698,2]
[346483543,1735003843511,-500.0,0.00013698,2]
[346483545,1735003843521,-578.06562112,0.00013698,2]
[346483547,1735003843530,-500.0,0.00013698,2]
[346483548,1735003843539,-500.0,0.00013698,2]
[346483549,1735003843548,-599.57,0.00013698,2]
[346483550,1735003843557,-638.47,0.00013698,2]
[346483551,1735003843567,-500.0,0.00013698,2]
[346483552,1735003843576,-500.0,0.00013698,2]
[346483553,1735003843586,-284.76335611,0.00013698,2]
[346483554,1735003843595,-695.34,0.00013698,2]
[346483555,1735003843604,-500.0,0.00013698,2]
[346483556,1735003843614,-291.0276643,0.00013698,2]
[346483557,1735003843623,-500.0,0.00013698,2]
[346483558,1735003843632,-500.0,0.00013698,2]
[346483559,1735003843641,-500.0,0.00013698,2]
[346483560,1735003843650,-500.0,0.00013698,2]
[346483561,1735003843659,-513.87,0.00013698,2]
[346483562,1735003843668,-603.04,0.00013698,2]
[346483563,1735003843678,-690.43,0.00013698,2]
[346483564,1735003843687,-500.0,0.00013698,2]
[346483565,1735003843696,-500.0,0.00013698,2]
[346483566,1735003843705,-805.37,0.00013698,2]
[346483567,1735003843714,-466.61200431,0.00013698,2]
[346483568,1735003843723,-500.0,0.00013698,2]
[346483569,1735003843733,-500.0,0.00013698,2]
[346483570,1735003843743,-845.67,0.00013698,2]
[346483571,1735003843752,-500.0,0.00013698,2]
[346483572,1735003843761,-577.7,0.00013698,2]
[346483573,1735003843771,-196.39085038,0.00013698,2]
[346483574,1735003843779,-500.0,0.00013698,2]
[346483575,1735003843788,-755.9,0.00013698,2]
[346483576,1735003843797,-500.0,0.00013698,2]
[346483577,1735003843807,-500.0,0.00013698,2]
[346483578,1735003843816,-620.15,0.00013698,2]
[346483579,1735003843825,-500.0,0.00013698,2]
[346483580,1735003843835,-500.0,0.00013698,2]
[346483581,1735003843844,-500.0,0.00013698,2]
[346483582,1735003843853,-500.0,0.00013698,2]
[346483583,1735003843862,-500.0,0.00013698,2]
[346483584,1735003843872,-500.0,0.00013698,2]
[346483585,1735003843881,-500.0,0.00013698,2]
[346483586,1735003843890,-500.0,0.00013698,2]
[346483587,1735003843900,-500.0,0.00013698,2]
[346483588,1735003843909,-500.0,0.00013698,2]
[346483589,1735003843918,-500.0,0.00013698,2]
[346483590,1735003843927,-584.67,0.00013698,2]
[346483591,1735003843936,-500.0,0.00013698,2]
[346483592,1735003843946,-521.61854745,0.00013698,2]
[346483593,1735003843956,-500.0,0.00013698,2]
[346483594,1735003843965,-564.05,0.00013698,2]
[346483595,1735003843974,-500.0,0.00013698,2]
[346483596,1735003843986,-414.44987641,0.00013698,2]
[346483597,1735003843996,-801.44,0.00013698,2]
[346483598,1735003844006,-500.0,0.00013698,2]
[346483599,1735003844015,-500.0,0.00013698,2]
[346483600,1735003844025,-737.24,0.00013698,2]
[346483601,1735003844035,-500.0,0.00013698,2]
[346483602,1735003844044,-500.0,0.00013698,2]
[346483603,1735003844054,-500.0,0.00013698,2]
[346483604,1735003844063,-187.30219499,0.00013698,2]
[346483605,1735003844072,-500.0,0.00013698,2]
[346483606,1735003844082,-518.33,0.00013698,2]
[346483607,1735003844091,-500.0,0.00013698,2]
[346483608,1735003844100,-500.0,0.00013698,2]
[346483609,1735003844109,-500.0,0.00013698,2]
[346483610,1735003844118,-500.0,0.00013698,2]
[346483611,1735003844127,-500.0,0.00013698,2]
[346483612,1735003844137,-550.89,0.00013698,2]
[346483613,1735003844146,-552.03,0.00013698,2]
[346483614,1735003844155,-500.0,0.00013698,2]
[346483615,1735003844164,-500.0,0.00013698,2]
[346483616,1735003844173,-500.0,0.00013698,2]
[346483617,1735003844182,-500.0,0.00013698,2]
[346483618,1735003844192,-500.0,0.00013698,2]
[346483619,1735003844201,-500.0,0.00013698,2]
[346483620,1735003844210,-500.0,0.00013698,2]
[346483621,1735003844219,-500.0,0.00013698,2]
[346483622,1735003844228,-864.58,0.00013698,2]
[346483623,1735003844237,-500.0,0.00013698,2]
[346483624,1735003844248,-500.0,0.00013698,2]
[346483625,1735003844257,-1075.9,0.00013698,2]
[346483626,1735003844266,-549.2,0.00013698,2]
[346483627,1735003844275,-500.0,0.00013698,2]
[346483628,1735003844284,-500.0,0.00013698,2]
[346483629,1735003844294,-578.63,0.00013698,2]
[346483630,1735003844303,-564.06,0.00013698,2]
[346483631,1735003844312,-500.0,0.00013698,2]
[346483632,1735003844323,-239.87463064,0.00013698,2]
[346483633,1735003844332,-500.0,0.00013698,2]
[346483634,1735003844342,-500.0,0.00013698,2]
[346483635,1735003844351,-500.0,0.00013698,2]
[346483636,1735003844360,-500.0,0.00013698,2]
[346483637,1735003844369,-502.06,0.00013698,2]
[346483638,1735003844379,-500.0,0.00013698,2]
[346483639,1735003844388,-563.81,0.00013698,2]
[346483640,1735003844397,-500.0,0.00013698,2]
[346483641,1735003844407,-500.0,0.00013698,2]
[346483642,1735003844416,-500.0,0.00013698,2]
[346483643,1735003844425,-500.0,0.00013698,2]
[346483644,1735003844435,-608.92,0.00013698,2]
[346483645,1735003844444,-904.43,0.00013698,2]
[346483646,1735003844453,-722.8,0.00013698,2]
[346483647,1735003844462,-1256.48,0.00013698,2]
[346483648,1735003844471,-500.0,0.00013698,2]
[346483649,1735003844481,-813.43,0.00013698,2]
[346483650,1735003844490,-750.89,0.00013698,2]
[346483651,1735003844499,-716.61,0.00013698,2]
[346483652,1735003844509,-500.0,0.00013698,2]
[346483653,1735003844518,-1458.21,0.00013698,2]
[346483654,1735003844527,-500.0,0.00013698,2]
[346483655,1735003844536,-567.7,0.00013698,2]
[346483656,1735003844545,-1340.35,0.00013698,2]
[346483657,1735003844555,-500.0,0.00013698,2]
[346483658,1735003844564,-723.15,0.00013698,2]
[346483659,1735003844573,-500.0,0.00013698,2]
[346483660,1735003844583,-971.96,0.00013698,2]
[346483661,1735003844592,-500.0,0.00013698,2]
[346483662,1735003844601,-500.0,0.00013698,2]
[346483663,1735003844610,-500.0,0.00013698,2]
[346483664,1735003844619,-1106.97,0.00013698,2]
[346483665,1735003844628,-500.0,0.00013698,2]
[346483666,1735003844637,-500.0,0.00013698,2]
[346483667,1735003844646,-1012.74,0.00013698,2]
[346483668,1735003844656,-500.0,0.00013698,2]
[346483669,1735003844665,-500.0,0.00013698,2]
[346483670,1735003844675,-649.27,0.00013698,2]
[346483671,1735003844685,-381.90550597,0.00013698,2]
[346483672,1735003844694,-500.0,0.00013698,2]
[346483673,1735003844703,-604.07,0.00013698,2]
[346483674,1735003844713,-500.0,0.00013698,2]
[346483675,1735003844723,-854.63,0.00013698,2]
[346483676,1735003844733,-1319.3,0.00013698,2]
[346483677,1735003844743,-500.0,0.00013698,2]
[346483678,1735003844752,-1015.2,0.00013698,2]
[346483679,1735003844761,-725.32,0.00013698,2]
[346483680,1735003844771,-500.0,0.00013698,2]
[346483681,1735003844780,-500.0,0.00013698,2]
[346483682,1735003844789,-500.0,0.00013698,2]
[346483683,1735003844798,-604.73,0.00013698,2]
[346483684,1735003844807,-744.62,0.00013698,2]
[346483685,1735003844817,-734.63,0.00013698,2]
[346483686,1735003844826,-1020.2,0.00013698,2]
[346483687,1735003844835,-832.89,0.00013698,2]
[346483688,1735003844844,-668.17,0.00013698,2]
[346483689,1735003844854,-500.0,0.00013698,2]
[346483690,1735003844863,-1313.54,0.00013698,2]
[346483691,1735003844873,-743.82,0.00013698,2]
[346483692,1735003844882,-500.0,0.00013698,2]
[346483693,1735003844892,-1278.18,0.00013698,2]
[346483694,1735003844901,-576.59,0.00013698,2]
[346483695,1735003844910,-566.81,0.00013698,2]
[346483696,1735003844919,-1111.51,0.00013698,2]
[346483697,1735003844928,-563.87,0.00013698,2]
[346483698,1735003844937,-527.27,0.00013698,2]
[346483699,1735003844946,-500.0,0.00013698,2]
[346483700,1735003844955,-578.04,0.00013698,2]
[346483701,1735003844964,-631.73,0.00013698,2]
[346483702,1735003844974,-757.62,0.00013698,2]
[346483703,1735003844984,-597.48,0.00013698,2]
[346483704,1735003844994,-500.0,0.00013698,2]
[346483705,1735003845003,-914.57,0.00013698,2]
[346483706,1735003845012,-206.28094897,0.00013698,2]
[346483707,1735003845021,-500.0,0.00013698,2]
[346483708,1735003845030,-500.0,0.00013698,2]
[346483709,1735003845039,-703.91,0.00013698,2]
[346483710,1735003845048,-1497.71,0.00013698,2]
[346483711,1735003845058,-500.0,0.00013698,2]
[346483712,1735003845067,-1205.5,0.00013698,2]
[346483713,1735003845076,-500.0,0.00013698,2]
[346483714,1735003845085,-500.0,0.00013698,2]
[346483715,1735003845094,-500.0,0.00013698,2]
[346483716,1735003845104,-500.0,0.00013698,2]
[346483717,1735003845114,-500.0,0.00013698,2]
[346483718,1735003845124,-1429.84,0.00013698,2]
[346483719,1735003845133,-859.83,0.00013698,2]
[346483720,1735003845143,-151.0,0.00013698,2]
[346483721,1735003845152,-500.0,0.00013698,2]
[346483722,1735003845162,-500.0,0.00013698,2]
[346483723,1735003845172,-151.0,0.00013698,2]
[346483724,1735003845181,-1490.91,0.00013698,2]
[346483725,1735003845190,-1168.9,0.00013698,2]
[346483726,1735003845200,-151.0,0.00013698,2]
[346483727,1735003845209,-500.0,0.00013698,2]
[346483728,1735003845218,-500.0,0.00013698,2]
[346483729,1735003845227,-609.40842741,0.00013698,2]
[346483730,1735003845237,-565.44,0.00013698,2]
[346483731,1735003845250,-500.0,0.00013698,2]
[346483732,1735003845259,-693.46,0.00013698,2]
[346483733,1735003845268,-500.0,0.00013698,2]
[346483734,1735003845277,-500.0,0.00013698,2]
[346483735,1735003845288,-852.33,0.00013698,2]
[346483736,1735003845297,-533.83,0.00013698,2]
[346483737,1735003845307,-500.0,0.00013698,2]
[346483738,1735003845316,-500.0,0.00013698,2]
[346483739,1735003845327,-1002.35,0.00013698,2]
[346483740,1735003845336,-500.0,0.00013698,2]
[346483741,1735003845346,-564.82,0.00013698,2]
[346483742,1735003845356,-1177.91,0.00013698,2]
[346483743,1735003845366,-1397.67,0.00013698,2]
[346483744,1735003845375,-500.0,0.00013698,2]
[346483745,1735003845385,-1273.02,0.00013698,2]
[346483746,1735003845394,-500.0,0.00013698,2]
[346483747,1735003845403,-500.0,0.00013698,2]
[346483748,1735003845413,-500.0,0.00013698,2]
[346483749,1735003845422,-370.265013,0.00013698,2]
[346483750,1735003845431,-500.0,0.00013698,2]
[346483751,1735003845440,-500.0,0.00013698,2]
[346483752,1735003845450,-500.0,0.00013698,2]
[346483753,1735003845459,-500.0,0.00013698,2]
[346483754,1735003845468,-677.01,0.00013698,2]
[346483755,1735003845478,-503.58563795,0.00013698,2]
[346483756,1735003845487,-715.64,0.00013698,2]
[346483757,1735003845497,-500.0,0.00013698,2]
[346483758,1735003845507,-820.25,0.00013698,2]
[346483759,1735003845516,-500.0,0.00013698,2]
[346483760,1735003845526,-500.0,0.00013698,2]
[346483761,1735003845535,-500.0,0.00013698,2]
[346483762,1735003845544,-670.54,0.00013698,2]
[346483763,1735003845554,-500.0,0.00013698,2]
[346483764,1735003845563,-500.0,0.00013698,2]
[346483765,1735003845573,-500.0,0.00013698,2]
[346483766,1735003845582,-729.76,0.00013698,2]
[346483767,1735003845592,-500.0,0.00013698,2]
[346483768,1735003845601,-1020.29,0.00013698,2]
[346483769,1735003845611,-500.0,0.00013698,2]
[346483770,1735003845621,-578.49885431,0.00013698,2]
[346483771,1735003845630,-657.72,0.00013698,2]
[346483772,1735003845639,-500.0,0.00013698,2]
[346483773,1735003845649,-500.0,0.00013698,2]
[346483774,1735003845659,-561.7,0.00013698,2]
[346483775,1735003845668,-500.0,0.00013698,2]
[346483776,1735003845678,-475.58842385,0.00013698,2]
[346483777,1735003845688,-500.0,0.00013698,2]
[346483778,1735003845697,-1371.73,0.00013698,2]
[346483779,1735003845707,-548.1,0.00013698,2]
[346483780,1735003845716,-656.15,0.00013698,2]
[346483781,1735003845726,-500.0,0.00013698,2]
[346483782,1735003845736,-995.71,0.00013698,2]
[346483785,1735003845757,-500.0,0.00013698,2]
[346483787,1735003845767,-500.0,0.00013698,2]
[346483789,1735003845777,-500.0,0.00013698,2]
[346483791,1735003845787,-1627.24,0.00013698,2]
[346483792,1735003845796,-790.92,0.00013698,2]
[346483793,1735003845806,-500.0,0.00013698,2]
[346483794,1735003845815,-729.23,0.00013698,2]
[346483795,1735003845826,-522.02,0.00013698,2]
[346483796,1735003845846,-610.75,0.00013698,2]
[346483797,1735003845855,-500.0,0.00013698,2]
[346483798,1735003845864,-500.0,0.00013698,2]
[346483799,1735003845874,-882.85,0.00013698,2]
[346483800,1735003845883,-717.2,0.00013698,2]
[346483801,1735003845893,-986.72,0.00013698,2]
[346483802,1735003845902,-595.38,0.00013698,2]
[346483803,1735003845912,-500.0,0.00013698,2]
[346483804,1735003845922,-1081.91,0.00013698,2]
[346483805,1735003845932,-500.0,0.00013698,2]
[346483806,1735003845941,-581.49,0.00013698,2]
[346483807,1735003845951,-500.0,0.00013698,2]
[346483808,1735003845960,-862.35,0.00013698,2]
[346483809,1735003845970,-500.0,0.00013698,2]
[346483810,1735003845980,-500.0,0.00013698,2]
[346483811,1735003845989,-768.85,0.00013698,2]
[346483812,1735003845998,-500.0,0.00013698,2]
[346483813,1735003846008,-500.0,0.00013698,2]
[346483814,1735003846017,-777.34,0.00013698,2]
[346483815,1735003846026,-500.0,0.00013698,2]
[346483816,1735003846036,-500.0,0.00013698,2]
[346483817,1735003846045,-1030.91,0.00013698,2]
[346483818,1735003846054,-1603.73,0.00013698,2]
[346483819,1735003846064,-557.32,0.00013698,2]
[346483820,1735003846073,-500.0,0.00013698,2]
[346483821,1735003846083,-500.0,0.00013698,2]
[346483822,1735003846092,-500.0,0.00013698,2]
[346483823,1735003846102,-577.92,0.00013698,2]
[346483824,1735003846112,-761.83,0.00013698,2]
[346483825,1735003846121,-500.0,0.00013698,2]
[346483826,1735003846130,-907.66,0.00013698,2]
[346483827,1735003846139,-500.0,0.00013698,2]
[346483828,1735003846148,-512.77,0.00013698,2]
[346483829,1735003846157,-634.08796434,0.00013698,2]
[346483830,1735003846166,-987.02,0.00013698,2]
[346483831,1735003846176,-500.0,0.00013698,2]
[346483832,1735003846185,-929.88,0.00013698,2]
[346483833,1735003846194,-500.0,0.00013698,2]
[346483834,1735003846204,-759.2,0.00013698,2]
[346483835,1735003846436,-500.0,0.00013698,2]
[346483836,1735003846447,-762.45,0.00013698,2]
[346483837,1735003846456,-500.0,0.00013698,2]
[346483838,1735003846465,-788.71,0.00013698,2]
[346483839,1735003846476,-1259.23,0.00013698,2]
[346483840,1735003846486,-500.0,0.00013698,2]
[346483841,1735003846495,-500.0,0.00013698,2]
[346483842,1735003846505,-500.0,0.00013698,2]
[346483843,1735003846514,-500.0,0.00013698,2]
[346483844,1735003846523,-696.11,0.00013698,2]
[346483845,1735003846532,-689.51,0.00013698,2]
[346483846,1735003846541,-1064.94,0.00013698,2]
[346483847,1735003846550,-554.15,0.00013698,2]
[346483848,1735003846559,-700.36,0.00013698,2]
[346483849,1735003846568,-500.0,0.00013698,2]
[346483850,1735003846577,-693.49,0.00013698,2]
[346483851,1735003846586,-735.35,0.00013698,2]
[346483852,1735003846595,-599.68,0.00013698,2]
[346483853,1735003846604,-500.0,0.00013698,2]
[346483854,1735003846613,-835.17,0.00013698,2]
[346483855,1735003846621,-526.37,0.00013698,2]
[346483856,1735003846630,-500.0,0.00013698,2]
[346483857,1735003846639,-500.0,0.00013698,2]
[346483858,1735003846648,-500.0,0.00013698,2]
[346483859,1735003846657,-1332.76,0.00013698,2]
[346483860,1735003846665,-1505.41,0.00013698,2]
[346483861,1735003846675,-500.0,0.00013698,2]
[346483862,1735003846684,-922.07,0.00013698,2]
[346483863,1735003846692,-811.11,0.00013698,2]
[346483864,1735003846701,-500.0,0.00013698,2]
[346483865,1735003846710,-812.47,0.00013698,2]
[346483866,1735003846719,-1868.2,0.00013698,2]
[346483867,1735003846728,-1021.5,0.00013698,2]
[346483868,1735003846738,-538.25,0.00013698,2]
[346483869,1735003846747,-739.45,0.00013698,2]
[346483870,1735003846756,-151.0,0.00013698,2]
[346483871,1735003846765,-151.0,0.00013698,2]
[346483872,1735003846774,-500.0,0.00013698,2]
[346483873,1735003846783,-798.14,0.00013698,2]
[346483874,1735003846792,-2948.41,0.00013698,2]
[346483875,1735003846801,-500.0,0.00013698,2]
[346483876,1735003846810,-610.22,0.00013698,2]
[346483877,1735003846820,-1746.31,0.00013698,2]
[346483878,1735003846829,-500.0,0.00013698,2]
[346483879,1735003846838,-1539.32,0.00013698,2]
[346483880,1735003846848,-2895.65,0.00013698,2]
[346483881,1735003846857,-500.0,0.00013698,2]
[346483882,1735003846867,-712.08,0.00013698,2]
[346483883,1735003846877,-500.0,0.00013698,2]
[346483884,1735003846887,-888.74,0.00013698,2]
[346483885,1735003846896,-500.0,0.00013698,2]
[346483886,1735003846905,-500.0,0.00013698,2]
[346483887,1735003846915,-500.0,0.00013698,2]
[346483888,1735003846924,-17715.45,0.00013698,2]
[346483889,1735003846933,-413.78229366,0.00013698,2]
[346483890,1735003846942,-500.0,0.00013698,2]
[346483891,1735003846952,-500.0,0.00013698,2]
[346483892,1735003846961,-500.0,0.00013698,2]
[346483893,1735003846970,-632.12,0.00013698,2]
[346483894,1735003846979,-1147.0,0.00013698,2]
[346483895,1735003846988,-756.42,0.00013698,2]
[346483896,1735003846998,-1459.62,0.00013698,2]
[346483897,1735003847008,-781.42,0.00013698,2]
[346483898,1735003847018,-500.0,0.00013698,2]
[346483899,1735003847027,-1417.02,0.00013698,2]
[346483900,1735003847037,-3291.19,0.00013698,2]
[346483901,1735003847047,-875.79,0.00013698,2]
[346483902,1735003847057,-500.0,0.00013698,2]
[346483903,1735003847067,-1232.52,0.00013698,2]
[346483904,1735003847078,-500.0,0.00013698,2]
[346483905,1735003847088,-500.0,0.00013698,2]
[346483906,1735003847098,-2391.25,0.00013698,2]
[346483907,1735003847108,-841.65,0.00013698,2]
[346483908,1735003847118,-8231.33,0.00013698,2]
[346483909,1735003847127,-500.0,0.00013698,2]
[346483910,1735003847137,-500.0,0.00013698,2]
[346483911,1735003847146,-532.31,0.00013698,2]
[346483912,1735003847155,-500.0,0.00013698,2]
[346483913,1735003847165,-2429.75,0.00013698,2]
[346483914,1735003847174,-500.0,0.00013698,2]
[346483915,1735003847183,-500.0,0.00013698,2]
[346483916,1735003847193,-500.0,0.00013698,2]
[346483917,1735003847202,-734.22,0.00013698,2]
[346483918,1735003847211,-3911.17,0.00013698,2]
[346483919,1735003847221,-500.0,0.00013698,2]
[346483920,1735003847230,-1845.97,0.00013698,2]
[346483921,1735003847239,-4626.33,0.00013698,2]
[346483922,1735003847251,-724.87,0.00013698,2]
[346483923,1735003847261,-500.0,0.00013698,2]
[346483924,1735003847270,-726.02,0.00013698,2]
[346483925,1735003847279,-4889.31,0.00013698,2]
[346483926,1735003847289,-1021.22,0.00013698,2]
[346483927,1735003847298,-500.0,0.00013698,2]
[346483928,1735003847308,-2067.54,0.00013698,2]
[346483929,1735003847317,-817.89,0.00013698,2]
[346483930,1735003847330,-500.0,0.00013698,2]
[346483931,1735003847340,-474.74488572,0.00013698,2]
[346483932,1735003847349,-1547.31,0.00013698,2]
[346483933,1735003847359,-500.0,0.00013698,2]
[346483934,1735003847367,-5200.32,0.00013698,2]
[346483935,1735003847377,-1097.23,0.00013698,2]
[346483936,1735003847386,-542.68,0.00013698,2]
[346483937,1735003847396,-500.0,0.00013698,2]
[346483938,1735003847405,-1424.9,0.00013698,2]
[346483939,1735003847414,-1400.57,0.00013698,2]
[346483940,1735003847423,-587.33,0.00013698,2]
[346483941,1735003847432,-1384.04,0.00013698,2]
[346483942,1735003847441,-2744.13,0.00013698,2]
[346483943,1735003847450,-500.0,0.00013698,2]
[346483944,1735003847460,-631.64,0.00013698,2]
[346483945,1735003847469,-790.84,0.00013698,2]
[346483946,1735003847478,-500.0,0.00013698,2]
[346483947,1735003847487,-1137.23,0.00013698,2]
[346483948,1735003847497,-3709.72,0.00013698,2]
[346483949,1735003847506,-500.0,0.00013698,2]
[346483950,1735003847515,-689.54,0.00013698,2]
[346483951,1735003847525,-4974.9,0.00013698,2]
[346483952,1735003847534,-3318.79,0.00013698,2]
[346483953,1735003847544,-500.0,0.00013698,2]
[346483954,1735003847553,-1267.64,0.00013698,2]
[346483955,1735003847563,-500.0,0.00013698,2]
[346483956,1735003847572,-500.0,0.00013698,2]
[346483957,1735003847582,-500.0,0.00013698,2]
[346483958,1735003847591,-500.0,0.00013698,2]
[346483959,1735003847600,-500.34,0.00013698,2]
[346483960,1735003847610,-855.89,0.00013698,2]
[346483961,1735003847619,-500.0,0.00013698,2]
[346483962,1735003847630,-990.04,0.00013698,2]
[346483963,1735003847640,-1647.83,0.00013698,2]
[346483964,1735003847649,-849.56,0.00013698,2]
[346483965,1735003847659,-1246.56,0.00013698,2]
[346483966,1735003847668,-4778.15,0.00013698,2]
[346483967,1735003847677,-500.0,0.00013698,2]
[346483968,1735003847687,-1372.42,0.00013698,2]
[346483969,1735003847697,-3984.82,0.00013698,2]
[346483970,1735003847706,-512.87,0.00013698,2]
[346483971,1735003847716,-500.0,0.00013698,2]
[346483972,1735003847726,-500.0,0.00013698,2]
[346483973,1735003847735,-743.64,0.00013698,2]
[346483974,1735003847745,-1013.54,0.00013698,2]
[346483975,1735003847755,-849.57,0.00013698,2]
[346483976,1735003847764,-2993.35,0.00013698,2]
[346483977,1735003847774,-11501.74,0.00013698,2]
[346483978,1735003847783,-1179.81,0.00013698,2]
[346483979,1735003847792,-652.26,0.00013698,2]
[346483980,1735003847802,-887.63,0.00013698,2]
[346483981,1735003847811,-734.06,0.00013698,2]
[346483982,1735003847820,-604.41,0.00013698,2]
[346483983,1735003847830,-1000.0,0.00013698,2]
[346483984,1735003847839,-2450.11,0.00013698,2]
[346483985,1735003847849,-1214.69,0.00013698,2]
[346483986,1735003847858,-1906.64,0.00013698,2]
[346483987,1735003847868,-617.99,0.00013698,2]
[346483988,1735003847877,-151.0,0.00013698,2]
[346483989,1735003847887,-572.83,0.00013698,2]
[346483990,1735003847897,-2486.83,0.00013698,2]
[346483991,1735003847906,-892.99,0.00013698,2]
[346483992,1735003847916,-15284.75,0.00013698,2]
[346483993,1735003847926,-1865.67,0.00013698,2]
[346483994,1735003847936,-1715.06,0.00013698,2]
[346483995,1735003847945,-1047.23,0.00013698,2]
[346483996,1735003847955,-647.31,0.00013698,2]